[Event "Late-Titled-Tuesday-Blitz-January-16-2024"]
[Site "Chess.com"]
[Date "2024.01.16"]
[Round "10"]
[White "GianmarcoVaR"]
[Black "Chessbard1972"]
[Result "1-0"]
[WhiteElo "2729"]
[BlackElo "2442"]
[TimeControl "180+1"]
[EndTime "15:57:29 PST"]
[Termination "GianmarcoVaR won by checkmate"]

1. d4 {[%clk 0:03:00.2]} 1... Nf6 {[%clk 0:02:59.5]} 2. Bf4 {[%clk 0:03:00.7]}
2... d5 {[%clk 0:02:58.3]} 3. e3 {[%clk 0:03:01]} 3... c5 {[%clk 0:02:57.6]} 4.
Nf3 {[%clk 0:03:00]} 4... Nc6 {[%clk 0:02:57.2]} 5. Nbd2 {[%clk 0:03:00.5]} 5...
Qb6 {[%clk 0:02:56.5]} 6. dxc5 {[%clk 0:03:01.1]} 6... Qxb2 {[%clk 0:02:55.3]}
7. Rb1 {[%clk 0:03:01.8]} 7... Qc3 {[%clk 0:02:51.6]} 8. Bb5 {[%clk 0:03:02.5]}
8... Qxc5 {[%clk 0:02:50.7]} 9. c4 {[%clk 0:01:30.8]} 9... e6 {[%clk 0:02:43.6]}
10. Ne5 {[%clk 0:01:19.2]} 10... Bd7 {[%clk 0:02:41.4]} 11. Nxd7 {[%clk
0:01:06.3]} 11... Nxd7 {[%clk 0:02:39.4]} 12. O-O {[%clk 0:01:05]} 12... Be7
{[%clk 0:02:33.5]} 13. Nb3 {[%clk 0:00:57.9]} 13... Qb6 {[%clk 0:02:10.4]} 14.
Nd4 {[%clk 0:00:57.9]} 14... Qc5 {[%clk 0:01:54]} 15. cxd5 {[%clk 0:00:58.1]}
15... Qxd5 {[%clk 0:01:47.2]} 16. Nxc6 {[%clk 0:00:58]} 16... bxc6 {[%clk
0:01:47]} 17. Qxd5 {[%clk 0:00:54.8]} 17... cxd5 {[%clk 0:01:44.7]} 18. Bxd7+
{[%clk 0:00:55.2]} 18... Kxd7 {[%clk 0:01:44.5]} 19. Rb7+ {[%clk 0:00:56.1]}
19... Ke8 {[%clk 0:01:44.5]} 20. Rc1 {[%clk 0:00:55.4]} 20... g5 {[%clk
0:01:20.3]} 21. Bb8 {[%clk 0:00:41.4]} 21... Rg8 {[%clk 0:00:53.3]} 22. g4
{[%clk 0:00:30.7]} 22... Bd8 {[%clk 0:00:38.1]} 23. a4 {[%clk 0:00:26.3]} 23...
a5 {[%clk 0:00:35]} 24. Rc6 {[%clk 0:00:20.7]} 24... Kf8 {[%clk 0:00:31.9]} 25.
Be5 {[%clk 0:00:16.8]} 25... Rg6 {[%clk 0:00:23.5]} 26. Kg2 {[%clk 0:00:16.6]}
26... f6 {[%clk 0:00:20.4]} 27. Bd6+ {[%clk 0:00:14.7]} 27... Kg8 {[%clk
0:00:20.8]} 28. Bc5 {[%clk 0:00:08.1]} 28... Rg7 {[%clk 0:00:20.2]} 29. Rxg7+
{[%clk 0:00:05.5]} 29... Kxg7 {[%clk 0:00:20.1]} 30. Rxe6 {[%clk 0:00:06.4]}
30... Rc8 {[%clk 0:00:17.7]} 31. Bd4 {[%clk 0:00:04.3]} 31... Kf7 {[%clk
0:00:15.2]} 32. Rd6 {[%clk 0:00:03.7]} 32... Be7 {[%clk 0:00:13.2]} 33. Rxd5
{[%clk 0:00:03.8]} 33... Bd8 {[%clk 0:00:12]} 34. Rd7+ {[%clk 0:00:03.8]} 34...
Kg6 {[%clk 0:00:11.1]} 35. Ra7 {[%clk 0:00:03.4]} 35... Bc7 {[%clk 0:00:08.6]}
36. Ra6 {[%clk 0:00:03.1]} 36... Rf8 {[%clk 0:00:08.2]} 37. Rc6 {[%clk
0:00:02.4]} 37... Bd8 {[%clk 0:00:06.5]} 38. h3 {[%clk 0:00:03.3]} 38... h5
{[%clk 0:00:05.3]} 39. e4 {[%clk 0:00:03.5]} 39... hxg4 {[%clk 0:00:05]} 40.
hxg4 {[%clk 0:00:04.4]} 40... Re8 {[%clk 0:00:04.6]} 41. e5 {[%clk 0:00:04.7]}
41... Rf8 {[%clk 0:00:02.9]} 42. Kf3 {[%clk 0:00:04.4]} 42... Kg7 {[%clk
0:00:01.9]} 43. exf6+ {[%clk 0:00:04.8]} 43... Bxf6 {[%clk 0:00:01.7]} 44. Rxf6
{[%clk 0:00:05]} 44... Rxf6+ {[%clk 0:00:02]} 45. Ke4 {[%clk 0:00:05.6]} 45...
Kf7 {[%clk 0:00:01.5]} 46. Bxf6 {[%clk 0:00:06.5]} 46... Kxf6 {[%clk 0:00:01.9]}
47. Kd5 {[%clk 0:00:07.4]} 47... Ke7 {[%clk 0:00:01.5]} 48. Ke5 {[%clk
0:00:08.3]} 48... Kd7 {[%clk 0:00:01.2]} 49. Kf5 {[%clk 0:00:09.2]} 49... Kc6
{[%clk 0:00:01.9]} 50. Kxg5 {[%clk 0:00:10.1]} 50... Kc5 {[%clk 0:00:02.8]} 51.
Kf5 {[%clk 0:00:11]} 51... Kb4 {[%clk 0:00:03.7]} 52. g5 {[%clk 0:00:11.9]}
52... Kxa4 {[%clk 0:00:04.6]} 53. g6 {[%clk 0:00:12.8]} 53... Kb3 {[%clk
0:00:05.4]} 54. g7 {[%clk 0:00:13.7]} 54... a4 {[%clk 0:00:06.1]} 55. g8=Q+
{[%clk 0:00:14.6]} 55... Kb2 {[%clk 0:00:05.7]} 56. Qa8 {[%clk 0:00:15.5]} 56...
a3 {[%clk 0:00:05.3]} 57. Ke5 {[%clk 0:00:16.3]} 57... a2 {[%clk 0:00:04.6]} 58.
Qxa2+ {[%clk 0:00:17.2]} 58... Kxa2 {[%clk 0:00:04.7]} 59. f4 {[%clk 0:00:18.1]}
59... Kb3 {[%clk 0:00:04.6]} 60. f5 {[%clk 0:00:19]} 60... Kc4 {[%clk
0:00:05.4]} 61. f6 {[%clk 0:00:19.9]} 61... Kb5 {[%clk 0:00:06.2]} 62. f7 {[%clk
0:00:20.8]} 62... Kc6 {[%clk 0:00:07.1]} 63. f8=Q {[%clk 0:00:21.7]} 63... Kb5
{[%clk 0:00:07.1]} 64. Qf4 {[%clk 0:00:22.6]} 64... Kc6 {[%clk 0:00:05.8]} 65.
Qd4 {[%clk 0:00:23.5]} 65... Kb5 {[%clk 0:00:06.1]} 66. Qc3 {[%clk 0:00:24.4]}
66... Kb6 {[%clk 0:00:06.3]} 67. Kd5 {[%clk 0:00:25.3]} 67... Kb7 {[%clk
0:00:07]} 68. Qb4+ {[%clk 0:00:25.5]} 68... Ka6 {[%clk 0:00:07]} 69. Kc6 {[%clk
0:00:25.7]} 69... Ka7 {[%clk 0:00:07.9]} 70. Qb7# {[%clk 0:00:26.4]} 1-0

[Event "Late-Titled-Tuesday-Blitz-January-16-2024"]
[Site "Chess.com"]
[Date "2024.01.16"]
[Round "10"]
[White "jcibarra"]
[Black "Rud_Makarian"]
[Result "1-0"]
[WhiteElo "2890"]
[BlackElo "3028"]
[TimeControl "180+1"]
[EndTime "15:57:36 PST"]
[Termination "jcibarra won by resignation"]

1. e4 {[%clk 0:03:00.5]} 1... c5 {[%clk 0:03:00.4]} 2. Nf3 {[%clk 0:03:00.9]}
2... d6 {[%clk 0:03:00.8]} 3. c3 {[%clk 0:02:59.4]} 3... Nf6 {[%clk 0:03:01]} 4.
h3 {[%clk 0:02:58.6]} 4... Nc6 {[%clk 0:03:00.1]} 5. Bd3 {[%clk 0:02:59]} 5...
g6 {[%clk 0:03:00]} 6. Bc2 {[%clk 0:02:59.5]} 6... Bg7 {[%clk 0:02:58.4]} 7. O-O
{[%clk 0:02:59.7]} 7... e5 {[%clk 0:02:58.1]} 8. d4 {[%clk 0:03:00]} 8... cxd4
{[%clk 0:02:52.8]} 9. cxd4 {[%clk 0:03:00.9]} 9... exd4 {[%clk 0:02:53.3]} 10.
Nxd4 {[%clk 0:03:01.3]} 10... O-O {[%clk 0:02:51.9]} 11. Nc3 {[%clk 0:03:02]}
11... d5 {[%clk 0:02:49.8]} 12. Bg5 {[%clk 0:02:48.7]} 12... Nxd4 {[%clk
0:02:19.8]} 13. Qxd4 {[%clk 0:02:44.2]} 13... Nxe4 {[%clk 0:02:09.6]} 14. Bxd8
{[%clk 0:02:09.4]} 14... Bxd4 {[%clk 0:02:08.5]} 15. Nxd5 {[%clk 0:01:30.7]}
15... Rxd8 {[%clk 0:01:35.3]} 16. Bxe4 {[%clk 0:01:29.4]} 16... Kg7 {[%clk
0:01:18.2]} 17. Rad1 {[%clk 0:01:23.4]} 17... Bxb2 {[%clk 0:01:03.4]} 18. Nc7
{[%clk 0:01:16.4]} 18... Rxd1 {[%clk 0:01:03.8]} 19. Rxd1 {[%clk 0:01:17]} 19...
Rb8 {[%clk 0:01:04.4]} 20. Rd8 {[%clk 0:01:02.7]} 20... Be5 {[%clk 0:01:01.1]}
21. Ne8+ {[%clk 0:00:43.1]} 21... Kh6 {[%clk 0:01:01.4]} 22. Rd5 {[%clk
0:00:14.6]} 22... Bf4 {[%clk 0:00:45.9]} 23. Nd6 {[%clk 0:00:04.1]} 23... Be6
{[%clk 0:00:43.8]} 24. Rd4 {[%clk 0:00:03]} 24... Be5 {[%clk 0:00:30.2]} 25. Rd3
{[%clk 0:00:02.7]} 25... b5 {[%clk 0:00:21.4]} 26. Rd2 {[%clk 0:00:01.9]} 26...
a5 {[%clk 0:00:18.8]} 27. Nb7 {[%clk 0:00:02.1]} 27... a4 {[%clk 0:00:16.7]} 28.
g3 {[%clk 0:00:02.6]} 28... b4 {[%clk 0:00:12.3]} 29. Nc5 {[%clk 0:00:03.2]}
29... Bc3 {[%clk 0:00:12.2]} 30. Rc2 {[%clk 0:00:02.9]} 30... a3 {[%clk
0:00:04.7]} 31. Nxe6 {[%clk 0:00:02.6]} 31... fxe6 {[%clk 0:00:05.6]} 32. Bd3
{[%clk 0:00:02.8]} 32... Rc8 {[%clk 0:00:05.2]} 33. Bb5 {[%clk 0:00:02.8]} 33...
b3 {[%clk 0:00:04.5]} 34. axb3 {[%clk 0:00:03.1]} 34... Rd8 {[%clk 0:00:04.3]}
35. b4 {[%clk 0:00:03]} 35... Bb2 {[%clk 0:00:04.4]} 36. Bc4 {[%clk 0:00:03.4]}
36... Rd4 {[%clk 0:00:04.7]} 37. Bxe6 {[%clk 0:00:03.2]} 37... Rxb4 {[%clk
0:00:05.1]} 38. Ba2 {[%clk 0:00:03.9]} 38... Bd4 {[%clk 0:00:02.8]} 39. Kg2
{[%clk 0:00:04]} 39... Kg7 {[%clk 0:00:02.4]} 40. h4 {[%clk 0:00:04.2]} 40...
Kf6 {[%clk 0:00:02.4]} 41. Rc4 {[%clk 0:00:04.3]} 41... Rb2 {[%clk 0:00:01.5]}
42. Rxd4 {[%clk 0:00:04.8]} 42... Rxa2 {[%clk 0:00:02.1]} 43. Ra4 {[%clk
0:00:05.5]} 43... Ra1 {[%clk 0:00:02.7]} 44. Kf3 {[%clk 0:00:05.7]} 44... h5
{[%clk 0:00:03.4]} 45. Kf4 {[%clk 0:00:05.8]} 45... Rf1 {[%clk 0:00:02.9]} 46.
Ra6+ {[%clk 0:00:05.6]} 46... Kf7 {[%clk 0:00:02.9]} 47. Ra7+ {[%clk 0:00:05]}
47... Kf6 {[%clk 0:00:03.1]} 48. Ra6+ {[%clk 0:00:05.2]} 48... Kf7 {[%clk
0:00:03.7]} 49. f3 {[%clk 0:00:05.8]} 49... Rd1 {[%clk 0:00:02.6]} 50. Rxa3
{[%clk 0:00:05.5]} 50... Rd4+ {[%clk 0:00:03.2]} 51. Kg5 {[%clk 0:00:05.7]}
51... Rd5+ {[%clk 0:00:03.7]} 52. Kh6 {[%clk 0:00:05.7]} 52... Rf5 {[%clk
0:00:01.7]} 53. f4 {[%clk 0:00:05.4]} 53... Rf6 {[%clk 0:00:01.4]} 54. Ra7+
{[%clk 0:00:05.7]} 54... Kf8 {[%clk 0:00:02]} 55. Kh7 {[%clk 0:00:05.3]} 55...
Rb6 {[%clk 0:00:02.1]} 56. Rg7 {[%clk 0:00:05.2]} 56... Rb3 {[%clk 0:00:01.2]}
57. Rxg6 {[%clk 0:00:05.6]} 57... Kf7 {[%clk 0:00:01.2]} 58. Kh6 {[%clk
0:00:05.6]} 58... Rc3 {[%clk 0:00:01.5]} 59. Kxh5 {[%clk 0:00:05.9]} 59... Rc5+
{[%clk 0:00:02.3]} 60. Rg5 {[%clk 0:00:06.4]} 60... Rc1 {[%clk 0:00:03.2]} 61.
Kg4 {[%clk 0:00:06.8]} 61... Rf1 {[%clk 0:00:04.1]} 62. h5 {[%clk 0:00:07.4]}
62... Rf3 {[%clk 0:00:05]} 63. Kxf3 {[%clk 0:00:07.3]} 1-0

[Event "Late-Titled-Tuesday-Blitz-January-16-2024"]
[Site "Chess.com"]
[Date "2024.01.16"]
[Round "10"]
[White "Incognito_Knight"]
[Black "Hrant_ChessMood"]
[Result "0-1"]
[WhiteElo "2752"]
[BlackElo "2911"]
[TimeControl "180+1"]
[EndTime "15:57:44 PST"]
[Termination "Hrant_ChessMood won on time"]

1. e4 {[%clk 0:03:00.2]} 1... c6 {[%clk 0:02:58]} 2. d4 {[%clk 0:02:59.9]} 2...
d5 {[%clk 0:02:58.9]} 3. exd5 {[%clk 0:03:00.8]} 3... cxd5 {[%clk 0:02:59.1]} 4.
Bd3 {[%clk 0:03:01.1]} 4... Nf6 {[%clk 0:02:59.6]} 5. h3 {[%clk 0:03:01.3]} 5...
Nc6 {[%clk 0:02:59.6]} 6. c3 {[%clk 0:03:01.3]} 6... g6 {[%clk 0:03:00.3]} 7.
Qc2 {[%clk 0:02:57.5]} 7... Bd7 {[%clk 0:02:56.6]} 8. Nf3 {[%clk 0:02:53.4]}
8... Rc8 {[%clk 0:02:57.1]} 9. a3 {[%clk 0:02:53]} 9... Bg7 {[%clk 0:02:56.9]}
10. O-O {[%clk 0:02:52.6]} 10... O-O {[%clk 0:02:57]} 11. Bf4 {[%clk 0:02:52.7]}
11... Nh5 {[%clk 0:02:45.1]} 12. Be3 {[%clk 0:02:50.4]} 12... Qc7 {[%clk
0:02:43.1]} 13. Re1 {[%clk 0:02:38.5]} 13... Nf4 {[%clk 0:02:39.5]} 14. Bf1
{[%clk 0:02:24.5]} 14... Bf5 {[%clk 0:02:22]} 15. Qd2 {[%clk 0:02:22.7]} 15...
Ne6 {[%clk 0:02:22.1]} 16. Bd3 {[%clk 0:02:09.8]} 16... Be4 {[%clk 0:02:16.1]}
17. Qe2 {[%clk 0:01:45.5]} 17... f5 {[%clk 0:02:00.9]} 18. Ng5 {[%clk
0:01:45.4]} 18... Nxg5 {[%clk 0:01:55.6]} 19. Bxg5 {[%clk 0:01:46.3]} 19... e5
{[%clk 0:01:56.5]} 20. Bxe4 {[%clk 0:01:36]} 20... fxe4 {[%clk 0:01:52.3]} 21.
Qb5 {[%clk 0:01:20.3]} 21... exd4 {[%clk 0:01:37.1]} 22. Qxd5+ {[%clk
0:01:20.3]} 22... Kh8 {[%clk 0:01:37.2]} 23. Qxe4 {[%clk 0:01:17.8]} 23... Rf5
{[%clk 0:01:24.6]} 24. Qg4 {[%clk 0:00:57.9]} 24... Ne5 {[%clk 0:01:16.4]} 25.
Qg3 {[%clk 0:00:55.2]} 25... Qb6 {[%clk 0:00:45]} 26. cxd4 {[%clk 0:00:41.4]}
26... Qxd4 {[%clk 0:00:43.4]} 27. Nc3 {[%clk 0:00:38]} 27... Nd3 {[%clk
0:00:34.5]} 28. Be3 {[%clk 0:00:34.8]} 28... Qc4 {[%clk 0:00:23.7]} 29. Re2
{[%clk 0:00:27.5]} 29... Be5 {[%clk 0:00:23.9]} 30. Qg4 {[%clk 0:00:26.5]} 30...
Nxb2 {[%clk 0:00:17.7]} 31. Rxb2 {[%clk 0:00:21.4]} 31... Bxc3 {[%clk
0:00:12.5]} 32. Qxc4 {[%clk 0:00:17]} 32... Rxc4 {[%clk 0:00:11.4]} 33. Rc2
{[%clk 0:00:16.8]} 33... Bxa1 {[%clk 0:00:08.1]} 34. Rxc4 {[%clk 0:00:17.7]}
34... Rb5 {[%clk 0:00:08.5]} 35. Bxa7 {[%clk 0:00:11.1]} 35... Be5 {[%clk
0:00:08]} 36. g3 {[%clk 0:00:07.5]} 36... Rb3 {[%clk 0:00:06.6]} 37. a4 {[%clk
0:00:05.3]} 37... Kg8 {[%clk 0:00:07.1]} 38. Bd4 {[%clk 0:00:05]} 38... Bd6
{[%clk 0:00:06.3]} 39. Kg2 {[%clk 0:00:04.2]} 39... Kf7 {[%clk 0:00:06.9]} 40.
Be3 {[%clk 0:00:04.2]} 40... Ke6 {[%clk 0:00:06.6]} 41. Re4+ {[%clk 0:00:02.9]}
41... Kd5 {[%clk 0:00:06.1]} 42. Rd4+ {[%clk 0:00:03.5]} 42... Ke6 {[%clk
0:00:06]} 43. Re4+ {[%clk 0:00:04]} 43... Kd5 {[%clk 0:00:06.5]} 44. Rh4 {[%clk
0:00:04.7]} 44... h5 {[%clk 0:00:06.6]} 45. Rd4+ {[%clk 0:00:04.6]} 45... Ke6
{[%clk 0:00:06.5]} 46. Re4+ {[%clk 0:00:04.8]} 46... Kd5 {[%clk 0:00:06.8]} 47.
Re8 {[%clk 0:00:05.1]} 47... Rb4 {[%clk 0:00:03.1]} 48. Rg8 {[%clk 0:00:05.3]}
48... Rxa4 {[%clk 0:00:03.3]} 49. Rxg6 {[%clk 0:00:05.7]} 49... b5 {[%clk
0:00:03.9]} 50. Rg5+ {[%clk 0:00:06.2]} 50... Kc6 {[%clk 0:00:04.3]} 51. Rxh5
{[%clk 0:00:05.8]} 51... b4 {[%clk 0:00:05]} 52. Rh6 {[%clk 0:00:06.5]} 52... b3
{[%clk 0:00:03.6]} 53. Bf4 {[%clk 0:00:06]} 53... Rxf4 {[%clk 0:00:03.1]} 0-1

[Event "Late-Titled-Tuesday-Blitz-January-16-2024"]
[Site "Chess.com"]
[Date "2024.01.16"]
[Round "10"]
[White "Makswolf200817"]
[Black "BogdanDeac"]
[Result "1/2-1/2"]
[WhiteElo "2759"]
[BlackElo "3009"]
[TimeControl "180+1"]
[EndTime "15:57:45 PST"]
[Termination "Game drawn by repetition"]

1. d4 {[%clk 0:02:58.4]} 1... d5 {[%clk 0:02:59.3]} 2. c4 {[%clk 0:02:58.7]}
2... e6 {[%clk 0:02:59.7]} 3. Nf3 {[%clk 0:02:59.3]} 3... Nf6 {[%clk 0:02:59.8]}
4. g3 {[%clk 0:03:00]} 4... dxc4 {[%clk 0:03:00]} 5. Bg2 {[%clk 0:03:00.1]} 5...
a6 {[%clk 0:03:00.6]} 6. O-O {[%clk 0:02:59.5]} 6... Nc6 {[%clk 0:03:01.2]} 7.
Be3 {[%clk 0:02:59.5]} 7... Nd5 {[%clk 0:02:46.5]} 8. Qc1 {[%clk 0:02:59.2]}
8... b5 {[%clk 0:02:39]} 9. b3 {[%clk 0:02:56.6]} 9... Bd6 {[%clk 0:01:00.6]}
10. bxc4 {[%clk 0:02:54.9]} 10... bxc4 {[%clk 0:01:01.5]} 11. Qxc4 {[%clk
0:02:52.3]} 11... Bd7 {[%clk 0:01:02]} 12. Nc3 {[%clk 0:02:43.9]} 12... Nce7
{[%clk 0:00:56]} 13. Ne5 {[%clk 0:02:32]} 13... Bxe5 {[%clk 0:00:49.4]} 14. dxe5
{[%clk 0:02:31.8]} 14... Nxe3 {[%clk 0:00:45.5]} 15. fxe3 {[%clk 0:02:31.5]}
15... c6 {[%clk 0:00:43]} 16. Rad1 {[%clk 0:02:09.3]} 16... Nd5 {[%clk
0:00:35.7]} 17. Bxd5 {[%clk 0:01:15.5]} 17... cxd5 {[%clk 0:00:33.4]} 18. Qb4
{[%clk 0:01:15]} 18... a5 {[%clk 0:00:25.9]} 19. Qd6 {[%clk 0:01:10.3]} 19...
Qe7 {[%clk 0:00:26.2]} 20. e4 {[%clk 0:00:58.6]} 20... Qxd6 {[%clk 0:00:25.4]}
21. exd6 {[%clk 0:00:59.5]} 21... Rc8 {[%clk 0:00:25.7]} 22. Rf3 {[%clk
0:00:55.6]} 22... dxe4 {[%clk 0:00:23.4]} 23. Nxe4 {[%clk 0:00:56.5]} 23... f5
{[%clk 0:00:21.2]} 24. Nf2 {[%clk 0:00:53]} 24... Kf7 {[%clk 0:00:18.5]} 25. Nd3
{[%clk 0:00:51.6]} 25... Kf6 {[%clk 0:00:18.8]} 26. Re3 {[%clk 0:00:52.4]} 26...
Rhd8 {[%clk 0:00:17]} 27. Ne5 {[%clk 0:00:52.2]} 27... Rc5 {[%clk 0:00:16.1]}
28. Nf3 {[%clk 0:00:46.3]} 28... Bc6 {[%clk 0:00:11.5]} 29. Kf2 {[%clk 0:00:34]}
29... h6 {[%clk 0:00:10.8]} 30. Ra3 {[%clk 0:00:29.1]} 30... Bd5 {[%clk
0:00:07.8]} 31. Nd4 {[%clk 0:00:25.7]} 31... Rxd6 {[%clk 0:00:07.1]} 32. Nb3
{[%clk 0:00:26.1]} 32... Rc2 {[%clk 0:00:06.9]} 33. Rxa5 {[%clk 0:00:24.3]}
33... Rb6 {[%clk 0:00:06.8]} 34. Nd4 {[%clk 0:00:18.5]} 34... Rxa2 {[%clk
0:00:06.3]} 35. Rxa2 {[%clk 0:00:16.6]} 35... Bxa2 {[%clk 0:00:07.2]} 36. Ra1
{[%clk 0:00:15.2]} 36... Bd5 {[%clk 0:00:07.4]} 37. Ra7 {[%clk 0:00:13.8]} 37...
Rb2 {[%clk 0:00:06.8]} 38. Nf3 {[%clk 0:00:14]} 38... Bc4 {[%clk 0:00:06.2]} 39.
Ng1 {[%clk 0:00:12.3]} 39... g5 {[%clk 0:00:05.5]} 40. Rc7 {[%clk 0:00:13]}
40... Bb5 {[%clk 0:00:04.2]} 41. Rb7 {[%clk 0:00:13.2]} 41... g4 {[%clk
0:00:04.5]} 42. Rb6 {[%clk 0:00:08.2]} 42... h5 {[%clk 0:00:04.5]} 43. Ke3
{[%clk 0:00:08.4]} 43... Ke5 {[%clk 0:00:03.6]} 44. Rb8 {[%clk 0:00:08.3]} 44...
Rb3+ {[%clk 0:00:03.5]} 45. Kf2 {[%clk 0:00:08.4]} 45... Bc4 {[%clk 0:00:03.5]}
46. Rc8 {[%clk 0:00:08.5]} 46... Bb5 {[%clk 0:00:03.1]} 47. Rb8 {[%clk 0:00:08]}
47... Ba4 {[%clk 0:00:03.2]} 48. Rh8 {[%clk 0:00:08.2]} 48... Kf6 {[%clk
0:00:03]} 49. Rxh5 {[%clk 0:00:08.6]} 49... Kg7 {[%clk 0:00:03.1]} 50. h3 {[%clk
0:00:07.9]} 50... Be8 {[%clk 0:00:02.6]} 51. Rh4 {[%clk 0:00:08.1]} 51... Rb4
{[%clk 0:00:02]} 52. hxg4 {[%clk 0:00:08.7]} 52... fxg4 {[%clk 0:00:02.8]} 53.
Ke3 {[%clk 0:00:06]} 53... Bg6 {[%clk 0:00:02.4]} 54. Kf2 {[%clk 0:00:06]} 54...
Re4 {[%clk 0:00:02.7]} 55. e3 {[%clk 0:00:06.1]} 55... e5 {[%clk 0:00:02.3]} 56.
Ne2 {[%clk 0:00:06.4]} 56... Rc4 {[%clk 0:00:03]} 57. Ke1 {[%clk 0:00:06.2]}
57... Bd3 {[%clk 0:00:02.8]} 58. Kd2 {[%clk 0:00:06.4]} 58... Bf5 {[%clk
0:00:03.2]} 59. Nc3 {[%clk 0:00:06.4]} 59... Bg6 {[%clk 0:00:03.5]} 60. e4
{[%clk 0:00:06.1]} 60... Rd4+ {[%clk 0:00:03.3]} 61. Ke3 {[%clk 0:00:05.8]}
61... Rc4 {[%clk 0:00:03.9]} 62. Kd2 {[%clk 0:00:05.6]} 62... Rd4+ {[%clk
0:00:04.2]} 63. Ke3 {[%clk 0:00:04.9]} 63... Rc4 {[%clk 0:00:04.7]} 64. Kd2
{[%clk 0:00:05.3]} 1/2-1/2

[Event "Late-Titled-Tuesday-Blitz-January-16-2024"]
[Site "Chess.com"]
[Date "2024.01.16"]
[Round "10"]
[White "ImportedItalianMaple"]
[Black "carloseduar100"]
[Result "1-0"]
[WhiteElo "2427"]
[BlackElo "2294"]
[TimeControl "180+1"]
[EndTime "15:57:46 PST"]
[Termination "ImportedItalianMaple won by checkmate"]

1. e4 {[%clk 0:02:29.6]} 1... e6 {[%clk 0:03:00]} 2. Qe2 {[%clk 0:02:28]} 2...
b6 {[%clk 0:02:59.3]} 3. g3 {[%clk 0:02:13.1]} 3... Bb7 {[%clk 0:02:59.7]} 4.
Bg2 {[%clk 0:02:13.3]} 4... f5 {[%clk 0:02:54.9]} 5. d3 {[%clk 0:02:06.8]} 5...
Nf6 {[%clk 0:02:54.2]} 6. Nd2 {[%clk 0:02:04.6]} 6... fxe4 {[%clk 0:02:47.4]} 7.
dxe4 {[%clk 0:02:03.1]} 7... Bc5 {[%clk 0:02:40.3]} 8. Ngf3 {[%clk 0:01:54.1]}
8... O-O {[%clk 0:02:39.2]} 9. O-O {[%clk 0:01:49.1]} 9... Nc6 {[%clk
0:02:32.4]} 10. c3 {[%clk 0:01:45.1]} 10... Ng4 {[%clk 0:02:31.2]} 11. Nb3
{[%clk 0:01:37.4]} 11... Bxf2+ {[%clk 0:02:23.1]} 12. Rxf2 {[%clk 0:01:34.2]}
12... Nxf2 {[%clk 0:02:24]} 13. Qxf2 {[%clk 0:01:34.7]} 13... Ne5 {[%clk
0:02:22.2]} 14. Qe2 {[%clk 0:01:20.9]} 14... Qf6 {[%clk 0:02:11.5]} 15. Nxe5
{[%clk 0:01:09.7]} 15... Qxe5 {[%clk 0:02:11.6]} 16. Bf4 {[%clk 0:01:10.1]}
16... Qf6 {[%clk 0:01:48.4]} 17. Bxc7 {[%clk 0:01:08.1]} 17... e5 {[%clk
0:01:48.8]} 18. Rd1 {[%clk 0:01:05.1]} 18... Rae8 {[%clk 0:01:29.5]} 19. Rxd7
{[%clk 0:00:44.1]} 19... Qc6 {[%clk 0:01:29.2]} 20. Qg4 {[%clk 0:00:43.4]} 20...
Rf7 {[%clk 0:01:24.2]} 21. Rxf7 {[%clk 0:00:22.2]} 21... Kxf7 {[%clk 0:01:25.1]}
22. Qf5+ {[%clk 0:00:18.1]} 22... Qf6 {[%clk 0:01:14.1]} 23. Bd6 {[%clk
0:00:16.6]} 23... h5 {[%clk 0:00:46.1]} 24. Ba3 {[%clk 0:00:15.7]} 24... Qxf5
{[%clk 0:00:41.4]} 25. exf5 {[%clk 0:00:16.6]} 25... Bxg2 {[%clk 0:00:41.5]} 26.
Kxg2 {[%clk 0:00:17.5]} 26... Kf6 {[%clk 0:00:41.8]} 27. Nd2 {[%clk 0:00:14.3]}
27... Kxf5 {[%clk 0:00:41.1]} 28. Kf2 {[%clk 0:00:14.7]} 28... Kg4 {[%clk
0:00:37.6]} 29. Nf1 {[%clk 0:00:13.7]} 29... Rd8 {[%clk 0:00:33.4]} 30. Kg2
{[%clk 0:00:13.2]} 30... Rd3 {[%clk 0:00:24.5]} 31. h3+ {[%clk 0:00:13.2]} 31...
Kf5 {[%clk 0:00:24.3]} 32. Kf2 {[%clk 0:00:13.8]} 32... h4 {[%clk 0:00:20.6]}
33. gxh4 {[%clk 0:00:06.1]} 33... Rxh3 {[%clk 0:00:20.3]} 34. Be7 {[%clk
0:00:05.7]} 34... Ke4 {[%clk 0:00:17.9]} 35. Bg5 {[%clk 0:00:06.2]} 35... Kd3
{[%clk 0:00:17.3]} 36. Kg2 {[%clk 0:00:05.9]} 36... Ke2 {[%clk 0:00:08.6]} 37.
Ng3+ {[%clk 0:00:04.7]} 37... Rxg3+ {[%clk 0:00:05.7]} 38. Kxg3 {[%clk
0:00:05.6]} 38... Kd1 {[%clk 0:00:06.2]} 39. Kf3 {[%clk 0:00:05.8]} 39... Kc2
{[%clk 0:00:06.7]} 40. Ke4 {[%clk 0:00:06.4]} 40... Kxb2 {[%clk 0:00:07.2]} 41.
Bd2 {[%clk 0:00:06.5]} 41... Kc2 {[%clk 0:00:06.6]} 42. Be1 {[%clk 0:00:06.8]}
42... Kd1 {[%clk 0:00:07.2]} 43. Bg3 {[%clk 0:00:07.4]} 43... Kc2 {[%clk
0:00:07.7]} 44. Bxe5 {[%clk 0:00:08.1]} 44... b5 {[%clk 0:00:07.5]} 45. Bxg7
{[%clk 0:00:08.5]} 45... a5 {[%clk 0:00:06.6]} 46. h5 {[%clk 0:00:09.1]} 46...
b4 {[%clk 0:00:06.9]} 47. cxb4 {[%clk 0:00:08.9]} 47... axb4 {[%clk 0:00:07.8]}
48. h6 {[%clk 0:00:09.7]} 48... Kb1 {[%clk 0:00:08.4]} 49. h7 {[%clk 0:00:09.2]}
49... Kxa2 {[%clk 0:00:09.3]} 50. h8=Q {[%clk 0:00:10]} 50... b3 {[%clk
0:00:09.9]} 51. Qb8 {[%clk 0:00:10.4]} 51... Ka3 {[%clk 0:00:08.2]} 52. Qa7+
{[%clk 0:00:10.4]} 52... Kb4 {[%clk 0:00:08.3]} 53. Qb6+ {[%clk 0:00:10.9]}
53... Kc4 {[%clk 0:00:08.7]} 54. Qd4+ {[%clk 0:00:10.2]} 54... Kb5 {[%clk
0:00:09.1]} 55. Qb2 {[%clk 0:00:10.8]} 55... Kc4 {[%clk 0:00:08.7]} 56. Qc3+
{[%clk 0:00:10.3]} 56... Kb5 {[%clk 0:00:09.1]} 57. Qxb3+ {[%clk 0:00:10.9]}
57... Kc6 {[%clk 0:00:09.6]} 58. Qd5+ {[%clk 0:00:10.9]} 58... Kc7 {[%clk
0:00:08.9]} 59. Qe6 {[%clk 0:00:11.2]} 59... Kb7 {[%clk 0:00:08.4]} 60. Kd5
{[%clk 0:00:12.1]} 60... Kc7 {[%clk 0:00:08.9]} 61. Be5+ {[%clk 0:00:11.3]}
61... Kb7 {[%clk 0:00:09.4]} 62. Kc5 {[%clk 0:00:11.3]} 62... Ka7 {[%clk
0:00:09.3]} 63. Qd7+ {[%clk 0:00:10.4]} 63... Ka6 {[%clk 0:00:09.8]} 64. Qc8+
{[%clk 0:00:10.1]} 64... Ka7 {[%clk 0:00:09.4]} 65. Qb8+ {[%clk 0:00:10.5]}
65... Ka6 {[%clk 0:00:09.7]} 66. Qa8# {[%clk 0:00:10.6]} 1-0